Workbook

Sheet Sheet1
A1: Committee → | B1: Dick Startz (Chair), Janice Shack-Marquez, Patricia Mosser | C1: Dick Startz (Chair), Janice Shack-Marquez, Patricia Mosser | D1: Dick Startz (Chair), Janice Shack-Marquez, Patricia Mosser | E1: Dan Newlon (Chair), Janice Shack-Marquez, Ron Oaxaca, Richard Startz | F1: Dan Newlon (Chair), Janice Shack-Marquez, Ron Oaxaca, Richard Startz | G1: Dan Newlon (Chair), Janice Shack-Marquez, Cecilia Conrad, Richard Startz | H1: Dan Newlon (Chair), Gustavo Suarez, Cecilia Conrad, Lucia Foster | I1: Dan Newlon (Chair), Gustavo Suarez, Cecilia Conrad, Lucia Foster | J1: Dan Newlon (Chair), Gustavo Suarez, Bevin Ashenmiller, Lucia Foster | K1: Dan Newlon (Chair), Gustavo Suarez, Cecilia Conrad, Lucia Foster | L1: Dan Newlon (Chair), Lucia Foster, Amalia Miller, Gustavo Suarez | M1: Dan Newlon (Chair), Lucia Foster, Amalia Miller, Gustavo Suarez | N1: Dan Newlon (Chair), Lucia Foster, Karen Pence, Ivan Vidangos | O1: Dan Newlon (Chair), Vicki Bogan, Cecilia Conrad, Lucia Foster, Karen Pence, Ivan Vidangos | P1: Dan Newlon (Chair), Shahina Amin, Ebonya Washington, Lucia Foster, Karen Pence, Ivan Vidangos | Q1: Dan Newlon (Chair), Shahina Amin, Lucia Foster, Neil Ericsson, Anna Paulson | R1: Dan Newlon (Chair), Ebonya Washington, Gary Hoover, Neil Ericsson, Barbara Fraumeni, Argia Sbordone | S1: Dan Newlon (Chair), Barbara Fraumeni, Argia Sbordone, Gisela Rua, Stephanie Aaronson, Anna Paulson | T1: Kristen Broady (Chair) , Linda Tesar, Vicki Bogan, Jose Fernandez, Orgul Ozturk
A2: SUMMER FELLOWS | B2: 2007 | C2: 2008 | D2: 2009 | E2: 2010 | F2: 2011 | G2: 2012 | H2: 2013 | I2: 2014 | J2: 2015 | K2: 2016 | L2: 2017 | M2: 2018 | N2: 2019 | O2: 2020 | P2: 2021 | Q2: 2022 | R2: 2023 | S2: 2024 | T2: 2025
A3: number of sponsor institutions | B3: 4 | C3: 14 | D3: 19 | E3: 23 | F3: 21 | G3: 20 | H3: 20 | I3: 21 | J3: 21 | K3: 22 | L3: 20 | M3: 20 | N3: 20 | O3: 28 | P3: 28 | Q3: 31 | R3: 29 | S3: 29 | T3: 28
A4: number of sponsors finding fellows | B4: 4 | C4: 10 | D4: 9 | E4: 6 | F4: 6 | G4: 10 | H4: 7 | I4: 12 | J4: 10 | K4: 10 | L4: 8 | M4: 13 | N4: 11 | O4: 8 | P4: 12 | Q4: 15 | R4: 13 | S4: 12 | T4: 2
A5: % Finding Fellows | B5: =+B4/B3 -> 1 | C5: 0.7142857143 | D5: 0.4736842105 | E5: 0.2608695652 | F5: 0.2857142857 | G5: 0.5 | H5: =+H4/H3 -> 0.35 | I5: 0.5714285714 | J5: 0.4761904762 | K5: 0.4545454545 | L5: 0.4 | M5: 0.65 | N5: =+N4/N3 -> 0.55 | O5: 0.2857142857 | P5: 0.4285714286 | Q5: 0.4838709677 | R5: 0.4482758621 | S5: 0.4137931034 | T5: =T4/T3 -> 0.07142857143
A6: Fellowships Awarded | B6: 6 | C6: 10 | D6: 18 | E6: 8 | F6: =SUM(F7:F17) -> 10 | G6: 13 | H6: 11 | I6: 13 | J6: 14 | K6: 15 | L6: 15 | M6: =SUM(M7:M17) -> 25 | N6: 19 | O6: 14 | P6: 17 | Q6: 25 | R6: 28 | S6: =SUM(S7:S17) -> 22 | T6: 2
A7: female, non-minority grad students | B7: 6 | C7: 5 | D7: 13 | E7: 5 | F7: 8 | G7: 10 | H7: 9 | I7: 9 | J7: 12 | K7: 13 | L7: 12 | M7: 17 | N7: 12 | O7: 10 | P7: 10 | Q7: 18 | R7: 14 | S7: 16 | T7: 0
A8: female, non-minority, post-docs | C8: 2 | D8: 1 | E8: 0 | F8: 0 | G8: 0 | H8: 0 | I8: 0 | J8: 0 | K8: 0 | L8: 0 | M8: 1 | N8: 0 | O8: 0 | P8: 0 | Q8: 0 | R8: 0 | S8: 0 | T8: 0
A9: female, non-minority, faculty | C9: 2 | D9: 1 | E9: 3 | F9: 2 | G9: 2 | H9: 1 | I9: 0 | J9: 1 | K9: 0 | L9: 0 | M9: 2 | N9: 1 | O9: 0 | P9: 1 | Q9: 4 | R9: 2 | S9: 1 | T9: 1
A10: female, minority grad students | H10: 1 | I10: 1 | J10: 1 | K10: 1 | L10: 0 | M10: 3 | N10: 2 | O10: 3 | P10: 4 | Q10: 0 | R10: 6 | S10: 2 | T10: 1
A11: female, minority, post-docs | I11: 0 | J11: 0 | K11: 0 | L11: 0 | M11: 0 | N11: 0 | O11: 0 | P11: 1 | Q11: 0 | R11: 0 | S11: 0 | T11: 0
A12: female, minority, faculty | I12: 1 | J12: 0 | K12: 0 | L12: 0 | M12: 1 | N12: 1 | O12: 0 | P12: 0 | Q12: 0 | R12: 0 | S12: 0 | T12: 0
A13: male, grad students, ur-minority | C13: 1 | D13: 0 | E13: 0 | G13: 1 | H13: 0 | I13: 1 | J13: 0 | K13: 1 | L13: 3 | M13: 0 | N13: 3 | O13: 1 | P13: 1 | Q13: 0 | R13: 6 | S13: 3 | T13: 0
A14: male, faculty, ur-minority | I14: 1 | J14: 0 | K14: 0 | L14: 0 | M14: 1 | N14: 0 | O14: 0 | P14: 0 | Q14: 0 | R14: 0 | S14: 0 | T14: 0
A15: male, grad student, non-minority | Q15: 3 | R15: 0 | S15: 0 | T15: 0
A16: female, unknown status | D16: 1 | E16: 0 | T16: 0
A17: unknown status | E17: 0 | T17: 0
A18: US citizen/perm res/HIB Visa | H18: 8 | I18: 7 | J18: 10 | K18: 9 | L18: 7 | M18: 12 | N18: 13 | O18: 8 | P18: 11 | Q18: 16 | R18: 17 | S18: 12 | T18: 2
A19: Applications | B19: 70 | C19: 84 | D19: 63 | E19: 42 | F19: =+F23+F24+F25+F26 -> 130 | G19: 43 | H19: 46 | I19: 43 | J19: 77 | K19: 82 | L19: 105 | M19: 123 | N19: =+N23+N24+N25+N26 -> 125 | O19: 230 | P19: 105 | Q19: 159 | R19: 220 | S19: 240 | T19: 181
A20: females (self-reported) | B20: 61 | C20: 71 | D20: 54 | E20: 37 | F20: 74 | G20: 36 | H20: 41 | I20: 34 | J20: 72 | K20: 78 | L20: 82 | M20: =85+10 -> 95 | N20: =125-5-15 -> 105 | O20: 174 | P20: 85 | Q20: 109 | R20: 146 | S20: 153 | T20: 113
A21: ur-minority (self-reported) | B21: uk | C21: 10 | D21: 15 | E21: 1 | F21: 26 | G21: 10 | H21: 9 | I21: 9 | J21: 6 | K21: 8 | L21: 17 | M21: =9+10 -> 19 | N21: 15 | O21: 19 | P21: 17 | Q21: 10 | R21: 44 | S21: 45 | T21: 43
A22: urm & female | B22: uk | C22: 7 | D22: 10 | E22: 0 | F22: 12 | G22: 4 | H22: 5 | I22: 4 | J22: 1 | K22: 4 | L22: 5 | M22: 10 | N22: 12 | O22: 11 | P22: 12 | Q22: 4 | R22: 20 | S22: 24 | T22: 21
A23: grad students | B23: 37 | C23: 47 | D23: 37 | E23: =42-E24-E25-E26 -> 28 | F23: 97 | G23: 33 | H23: 39 | I23: 29 | J23: 55 | K23: 63 | L23: 92 | M23: 103 | N23: 96 | O23: 152 | P23: 86 | Q23: 107 | R23: 155 | S23: 163 | T23: 154
A24: faculty | B24: 38 | C24: 27 | D24: 16 | E24: 12 | F24: 27 | G24: 6 | H24: 7 | I24: 13 | J24: 19 | K24: 19 | L24: 12 | M24: 18 | N24: 26 | O24: 31 | P24: 15 | Q24: 23 | R24: 30 | S24: 28 | T24: 20
A25: post-doc/researchers | D25: 4 | E25: 1 | F25: 6 | G25: 2 | H25: 0 | I25: 1 | J25: 2 | K25: 0 | L25: 1 | M25: 2 | N25: 3 | O25: 8 | P25: 2 | Q25: 2 | R25: 5 | S25: 2 | T25: 7
A26: other | D26: 6 | E26: 1 | G26: 2 | H26: 0 | I26: 0 | J26: 1 | K26: 0 | L26: 0 | M26: 0 | N26: 0 | O26: 39 | P26: 2 | Q26: 27 | R26: 30 | S26: 47
A27: US citizen/perm res/HIB Visa | H27: 28 | I27: 25 | J27: 40 | K27: =31-2+1 -> 30 | L27: 32 | M27: 48 | N27: 35 | O27: 70 | P27: 50 | Q27: 56 | R27: 82 | S27: 87 | T27: 62
A28: Not US citizen/perm res/HIB Visa | H28: =+H19-H27 -> 18 | I28: 18 | J28: 37 | K28: 52 | L28: 73 | M28: 75 | N28: =+N19-N27 -> 90 | O28: =+O19-O27 -> 160 | P28: 55 | Q28: 99 | R28: 138 | S28: 153 | T28: 119
A29: % Placed
A30: Applicants | B30: =+B6/B19 -> 0.08571428571 | C30: =+C6/C19 -> 0.119047619 | D30: 0.2857142857 | E30: 0.1904761905 | F30: 0.07692307692 | G30: 0.3023255814 | H30: 0.2391304348 | I30: =+I6/I19 -> 0.3023255814 | J30: 0.1818181818 | K30: 0.1829268293 | L30: 0.1428571429 | M30: 0.2032520325 | N30: 0.152 | O30: =+O6/O19 -> 0.06086956522 | P30: =+P6/P19 -> 0.1619047619 | Q30: =+Q6/Q19 -> 0.1572327044 | R30: =+R6/R19 -> 0.1272727273 | S30: =+S6/S19 -> 0.09166666667 | T30: =2/181 -> 0.01104972376
A31: Female Applicants | B31: =+(SUM(B7:B12))/B20 -> 0.09836065574 | C31: 0.1267605634 | D31: 0.2777777778 | E31: 0.2162162162 | F31: 0.1351351351 | G31: 0.3333333333 | H31: =+(SUM(H7:H12))/H20 -> 0.2682926829 | I31: 0.3235294118 | J31: 0.1944444444 | K31: 0.1794871795 | L31: 0.1463414634 | M31: 0.2526315789 | N31: =+(SUM(N7:N12))/N20 -> 0.1523809524 | O31: 0.07471264368 | P31: 0.1882352941 | Q31: 0.2018348624 | R31: 0.1506849315 | S31: 0.1241830065 | T31: =T20/T19 -> 0.6243093923
A32: Minority Applicants | C32: =+SUM(C10:C13)/C21 -> 0.1 | D32: 0 | E32: 0 | F32: 0 | G32: 0.1 | H32: 0.1111111111 | I32: =+SUM(I10:I13)/I21 -> 0.3333333333 | J32: 0.1666666667 | K32: 0.25 | L32: 0.1764705882 | M32: 0.2105263158 | N32: 0.4 | O32: =+SUM(O10:O13)/O21 -> 0.2105263158 | P32: =+SUM(P10:P13)/P21 -> 0.3529411765 | Q32: =+SUM(Q10:Q13)/Q21 -> 0 | R32: =+SUM(R10:R13)/R21 -> 0.2727272727 | S32: =+SUM(S10:S13)/S21 -> 0.1111111111 | T32: =T21/T19 -> 0.2375690608
A33: US citizen/perm res/HIB Visa | H33: =+H18/H27 -> 0.2857142857 | I33: 0.28 | J33: 0.25 | K33: 0.3 | L33: 0.21875 | M33: 0.25 | N33: =+N18/N27 -> 0.3714285714 | O33: 0.1142857143 | P33: 0.22 | Q33: 0.2857142857 | R33: 0.2073170732 | S33: 0.1379310345 | T33: =T27/T19 -> 0.3425414365
A34: Not US citizen/perm res/HIB Visa | H34: =+(H6-H18)/(H19-H27) -> 0.1666666667 | I34: 0.3333333333 | J34: 0.1081081081 | K34: 0.1153846154 | L34: 0.1095890411 | M34: 0.1733333333 | N34: =+(N6-N18)/(N19-N27) -> 0.06666666667 | O34: 0.0375 | P34: 0.1090909091 | Q34: 0.08737864078 | R34: 0.07971014493 | S34: 0.06535947712 | T34: =T28/T19 -> 0.6574585635
A36: Note: For 2025 there were 181 completed applications, and 136 incomplete applications
